[Event "DVM U14 2024"]
[Site "Heidelberg"]
[Date "2024.12.29"]
[Round "5"]
[White "Li, Xiao Teng"]
[Black "Schucht, Adrian"]
[Result "1/2-1/2"]
[ECO "E06"]
[WhiteElo "1661"]
[BlackElo "1617"]
[Annotator "NA"]
[PlyCount "63"]
[EventDate "2024.12.23"]
[EventType "team-tourn"]
[EventRounds "7"]
[EventCountry "GER"]
[SourceTitle "playchess.com"]
[Source "ChessBase"]
[SourceQuality "1"]
[TimeControl "40/5400+30:1800+30"]

1. c4 {[%emt 0:00:04]} e6 {[%emt 0:00:07]} 2. d4 {[%emt 0:00:14]} d5 {[%emt 0:00:04]} 3. Nc3 {[%emt 0:00:09]} Nf6 {[%emt 0:00:08]} 4. g3 {[%emt 0:00:20]} Be7 {[%emt 0:01:23]} 5. Bg2 {[%emt 0:00:16]} O-O {[%emt 0:02:19]} 6. Nf3 {[%emt 0:00:44]} c6 {[%emt 0:01:29]} 7. a4 {[%emt 0:02:38]} a5 {[%emt 0:08:43]} 8. O-O {[%emt 0:09:28]} Nbd7 {[%emt 0:01:37]} 9. cxd5 {[%emt 0:01:26]} exd5 {[%emt 0:00:32]} 10. Bd2 {[%emt 0:10:48]} Nb6 {[%emt 0:01:47]} 11. Qc2 {[%emt 0:05:30]} Re8 {[%emt 0:06:50]} 12. Rfe1 {[%emt 0:03:19]} Bb4 {[%emt 0:02:19]} 13. Ne5 {[%emt 0:07:37]} Bxc3 {[%emt 0:01:38]} 14. bxc3 {[%emt 0:01:43]} h6 {[%emt 0:03:55]} 15. Rab1 {[%emt 0:08:13]} Nbd7 {[%emt 0:07:16]} 16. Nf3 {[%emt 0:04:07]} Nb6 {[%emt 0:03:19]} 17. Ne5 {[%emt 0:00:37]} Nbd7 {[%emt 0:19:20]} 18. Nf3 {[%emt 0:00:05]} Re7 {[%emt 0:04:53]} 19. Nh4 {[%emt 0:02:59]} Nb6 {[%emt 0:03:20]} 20. Nf3 {[%emt 0:01:56]} Nc4 {[%emt 0:00:50]} 21. Qc1 {[%emt 0:04:43]} Bf5 {[%emt 0:01:16]} 22. Rb3 {[%emt 0:03:42]} Kh7 {[%emt 0:01:36]} 23. Nh4 {[%emt 0:04:51]} Qd7 {[%emt 0:06:40]} 24. Bf4 {[%emt 0:13:56]} Rae8 {[%emt 0:02:08]} 25. Bf1 {[%emt 0:03:38]} Bh3 {[%emt 0:03:41]} 26. Bxh3 {[%emt 0:00:56]} Qxh3 {[%emt 0:00:09]} 27. Qb1+ {[%emt 0:00:42]} Kg8 {[%emt 0:01:37]} 28. Qf5 {[%emt 0:02:54]} Ng4 {[%emt 0:03:44]} 29. Nf3 {[%emt 0:00:09]} Rxe2 {[%emt 0:00:40]} 30. Rxe2 {[%emt 0:00:04]} Rxe2 {[%emt 0:01:00]} 31. Qc8+ {[%emt 0:00:02]} Kh7 {[%emt 0:01:53]} 32. Qf5+ {[%emt 0:00:05]} 1/2-1/2

[Event "DVM U14 2024"]
[Site "Heidelberg"]
[Date "2024.12.29"]
[Round "5"]
[White "Zabashtanskyi, Andrii"]
[Black "Madel, Luca"]
[Result "1-0"]
[ECO "D31"]
[WhiteElo "1644"]
[BlackElo "1657"]
[Annotator "NA"]
[PlyCount "47"]
[EventDate "2024.12.23"]
[EventType "team-tourn"]
[EventRounds "7"]
[EventCountry "GER"]
[SourceTitle "playchess.com"]
[Source "ChessBase"]
[SourceQuality "1"]
[TimeControl "40/5400+30:1800+30"]

1. d4 {[%emt 0:00:02]} d5 {[%emt 0:00:37]} 2. c4 {[%emt 0:00:10]} e6 {[%emt 0:00:08]} 3. Nc3 {[%emt 0:00:08]} Nf6 {[%emt 0:00:12]} 4. Bf4 {[%emt 0:00:19]} c6 {[%emt 0:00:32]} 5. cxd5 {[%emt 0:00:17]} exd5 {[%emt 0:00:20]} 6. e3 {[%emt 0:00:40]} Bd6 {[%emt 0:01:55]} 7. Bxd6 {[%emt 0:00:08]} Qxd6 {[%emt 0:00:09]} 8. Bd3 {[%emt 0:00:10]} Be6 {[%emt 0:00:51]} 9. Nf3 {[%emt 0:00:10]} Nbd7 {[%emt 0:00:24]} 10. h3 {[%emt 0:00:13]} h6 {[%emt 0:01:45]} 11. O-O {[%emt 0:00:08]} O-O {[%emt 0:00:40]} 12. Qe2 {[%emt 0:00:24]} Rfe8 {[%emt 0:02:30]} 13. Rab1 {[%emt 0:00:17]} a5 {[%emt 0:07:01]} 14. a3 {[%emt 0:02:13]} b5 {[%emt 0:05:42]} 15. b4 {[%emt 0:02:06]} axb4 {[%emt 0:01:14]} 16. axb4 {[%emt 0:00:07]} Nb6 {[%emt 0:00:16]} 17. Ne5 {[%emt 0:11:43]} Nfd7 {[%emt 0:05:53]} 18. f4 {[%emt 0:04:01]} Nxe5 {[%emt 0:02:31]} 19. dxe5 {[%emt 0:01:28]} Qd8 {[%emt 0:02:45]} 20. Qh5 {[%emt 0:05:07]} d4 {[%emt 0:05:30]} 21. f5 {[%emt 0:02:28]} Bxf5 {[%emt 0:07:05]} 22. Qxf5 {[%emt 0:00:30]} dxc3 {[%emt 0:03:01]} 23. Qxf7+ {[%emt 0:00:50]} Kh8 {[%emt 0:00:08]} 24. Qg6 {[%emt 0:00:16]} 1-0

[Event "DVM U14 2024"]
[Site "Heidelberg"]
[Date "2024.12.29"]
[Round "5"]
[White "Zhu, Timo Kaiheng"]
[Black "Luccone, Constantin"]
[Result "1/2-1/2"]
[ECO "D02"]
[WhiteElo "1615"]
[BlackElo "1567"]
[Annotator "NA"]
[PlyCount "90"]
[EventDate "2024.12.23"]
[EventType "team-tourn"]
[EventRounds "7"]
[EventCountry "GER"]
[SourceTitle "playchess.com"]
[Source "ChessBase"]
[SourceQuality "1"]
[TimeControl "40/5400+30:1800+30"]

1. d4 {[%emt 0:00:03]} d5 {[%emt 0:00:04]} 2. Bf4 {[%emt 0:00:10]} Nf6 {[%emt 0:00:13]} 3. e3 {[%emt 0:00:10]} c5 {[%emt 0:00:10]} 4. Nf3 {[%emt 0:00:07]} Nc6 {[%emt 0:00:27]} 5. Nbd2 {[%emt 0:01:18]} Qb6 {[%emt 0:00:30]} 6. dxc5 {[%emt 0:01:04]} Qxb2 {[%emt 0:19:02]} 7. Rb1 {[%emt 0:00:47]} Qc3 {[%emt 0:05:23]} 8. Rb3 {[%emt 0:00:42]} Qxc5 {[%emt 0:00:47]} 9. Bd3 {[%emt 0:01:34]} Qa5 {[%emt 0:00:43]} 10. O-O {[%emt 0:01:10]} Qd8 {[%emt 0:00:23]} 11. c4 {[%emt 0:01:31]} e6 {[%emt 0:00:25]} 12. cxd5 {[%emt 0:00:42]} exd5 {[%emt 0:00:14]} 13. Qc2 {[%emt 0:02:35]} Bd6 {[%emt 0:01:16]} 14. Bg3 {[%emt 0:00:40]} O-O {[%emt 0:00:22]} 15. Rfb1 {[%emt 0:02:42]} Qe7 {[%emt 0:05:16]} 16. Bb5 {[%emt 0:04:24]} Bd7 {[%emt 0:01:33]} 17. Bxd6 {[%emt 0:01:53]} Qxd6 {[%emt 0:00:08]} 18. Bd3 {[%emt 0:00:26]} Rac8 {[%emt 0:03:08]} 19. Qd1 {[%emt 0:01:06]} b6 {[%emt 0:00:44]} 20. Ba6 {[%emt 0:01:40]} Rb8 {[%emt 0:00:00]} 21. a4 {[%emt 0:06:24]} Ne5 {[%emt 0:00:02]} 22. Nxe5 {[%emt 0:01:09]} Qxe5 {[%emt 0:00:06]} 23. Rb4 {[%emt 0:01:02]} Bf5 {[%emt 0:02:27]} 24. Nf3 {[%emt 0:02:57]} Qd6 {[%emt 0:00:38]} 25. Bd3 {[%emt 0:00:25]} Bxd3 {[%emt 0:00:24]} 26. Qxd3 {[%emt 0:00:08]} Rfd8 {[%emt 0:00:46]} 27. h3 {[%emt 0:01:57]} h6 {[%emt 0:00:32]} 28. Rd4 {[%emt 0:01:17]} Ne4 {[%emt 0:04:02]} 29. Rd1 {[%emt 0:01:07]} Nf6 {[%emt 0:00:50]} 30. Ne1 {[%emt 0:02:12]} Qc6 {[%emt 0:00:44]} 31. Nc2 {[%emt 0:01:59]} Rbc8 {[%emt 0:03:10]} 32. Nb4 {[%emt 0:00:54]} Qc3 {[%emt 0:00:11]} 33. Qxc3 {[%emt 0:00:17]} Rxc3 {[%emt 0:00:07]} 34. Nxd5 {[%emt 0:00:19]} Nxd5 {[%emt 0:00:13]} 35. Rxd5 {[%emt 0:00:04]} Rxd5 {[%emt 0:00:05]} 36. Rxd5 {[%emt 0:00:06]} Rc4 {[%emt 0:00:04]} 37. a5 {[%emt 0:00:55]} Rc5 {[%emt 0:01:07]} 38. Rd8+ {[%emt 0:00:36]} Kh7 {[%emt 0:00:05]} 39. axb6 {[%emt 0:00:04]} axb6 {[%emt 0:00:04]} 40. Rb8 {[%emt 0:00:35]} b5 {[%emt 0:00:14]} 41. Kf1 {[%emt 0:30:15]} Kg6 {[%emt 0:30:17]} 42. Ke2 {[%emt 0:00:08]} Kf6 {[%emt 0:01:58]} 43. Kd2 {[%emt 0:00:36]} Ke6 {[%emt 0:00:32]} 44. Rb7 {[%emt 0:00:45]} Rf5 {[%emt 0:00:43]} 45. f4 {[%emt 0:02:19]} Rc5 {[%emt 0:00:23]} 1/2-1/2

[Event "DVM U14 2024"]
[Site "Heidelberg"]
[Date "2024.12.29"]
[Round "5"]
[White "Belenki, Janis"]
[Black "Meijers, Jaroslav"]
[Result "1-0"]
[ECO "B45"]
[WhiteElo "1611"]
[BlackElo "1663"]
[Annotator "NA"]
[PlyCount "103"]
[EventDate "2024.12.23"]
[EventType "team-tourn"]
[EventRounds "7"]
[EventCountry "GER"]
[SourceTitle "playchess.com"]
[Source "ChessBase"]
[SourceQuality "1"]
[TimeControl "40/5400+30:1800+30"]

1. e4 {[%emt 0:00:04]} c5 {[%emt 0:00:09]} 2. Nf3 {[%emt 0:00:05]} e6 {[%emt 0:00:06]} 3. d4 {[%emt 0:00:06]} cxd4 {[%emt 0:00:18]} 4. Nxd4 {[%emt 0:00:07]} Nf6 {[%emt 0:00:15]} 5. Nc3 {[%emt 0:00:08]} Nc6 {[%emt 0:00:02]} 6. Nxc6 {[%emt 0:00:06]} bxc6 {[%emt 0:00:08]} 7. e5 {[%emt 0:00:03]} Nd5 {[%emt 0:00:06]} 8. Ne4 {[%emt 0:00:07]} Qc7 {[%emt 0:00:10]} 9. f4 {[%emt 0:00:04]} Qb6 {[%emt 0:00:23]} 10. c4 {[%emt 0:00:19]} Bb4+ {[%emt 0:00:07]} 11. Ke2 {[%emt 0:00:19]} f5 {[%emt 0:28:04]} 12. exf6 {[%emt 0:00:18]} Nxf6 {[%emt 0:02:31]} 13. Be3 {[%emt 0:00:49]} Qa5 {[%emt 0:53:39]} 14. Nxf6+ {[%emt 0:08:43]} gxf6 {[%emt 0:00:51]} 15. a3 {[%emt 0:00:13]} Be7 {[%emt 0:03:37]} 16. Kf2 {[%emt 0:07:52]} h5 {[%emt 0:06:46]} 17. b4 {[%emt 0:03:34]} Qf5 {[%emt 0:00:24]} 18. h3 {[%emt 0:01:43]} h4 {[%emt 0:01:01]} 19. Bd3 {[%emt 0:00:25]} Qh5 {[%emt 0:00:21]} 20. Qxh5+ {[%emt 0:00:06]} Rxh5 {[%emt 0:00:03]} 21. Bg6+ {[%emt 0:00:09]} Kd8 {[%emt 0:00:41]} 22. Bxh5 {[%emt 0:00:07]} f5 {[%emt 0:00:05]} 23. c5 {[%emt 0:02:04]} Bf6 {[%emt 0:00:34]} 24. Rad1 {[%emt 0:00:31]} Ke7 {[%emt 0:00:24]} 25. Bd4 {[%emt 0:00:32]} a5 {[%emt 0:01:10]} 26. Bxf6+ {[%emt 0:00:52]} Kxf6 {[%emt 0:00:07]} 27. Rd4 {[%emt 0:00:33]} axb4 {[%emt 0:01:13]} 28. axb4 {[%emt 0:00:12]} Ra2+ {[%emt 0:00:04]} 29. Be2 {[%emt 0:01:03]} e5 {[%emt 0:01:07]} 30. Rd6+ {[%emt 0:00:24]} Ke7 {[%emt 0:00:32]} 31. fxe5 {[%emt 0:00:10]} Ba6 {[%emt 0:00:26]} 32. Re1 {[%emt 0:00:14]} Rb2 {[%emt 0:00:15]} 33. Ke3 {[%emt 0:00:50]} Bc8 {[%emt 0:00:42]} 34. Rd2 {[%emt 0:01:01]} Rxb4 {[%emt 0:00:22]} 35. Rd4 {[%emt 0:00:15]} Rb3+ {[%emt 0:00:25]} 36. Kf4 {[%emt 0:00:20]} Rc3 {[%emt 0:00:41]} 37. Rc4 {[%emt 0:00:29]} Ra3 {[%emt 0:00:39]} 38. Kg5 {[%emt 0:00:25]} Rg3+ {[%emt 0:00:27]} 39. Kxh4 {[%emt 0:00:16]} Rxg2 {[%emt 0:00:05]} 40. Bf3 {[%emt 0:00:31]} Rg8 {[%emt 0:00:49]} 41. Rf4 {[%emt 0:30:41]} Ke6 {[%emt 0:30:26]} 42. Rd4 {[%emt 0:00:47]} Ke7 {[%emt 0:00:42]} 43. Rd6 {[%emt 0:00:39]} Rh8+ {[%emt 0:00:00]} 44. Kg3 {[%emt 0:00:00]} Ba6 {[%emt 0:00:00]} 45. e6 {[%emt 0:00:00]} dxe6 {[%emt 0:00:00]} 46. Rexe6+ {[%emt 0:00:00]} Kf7 {[%emt 0:00:00]} 47. Rf6+ {[%emt 0:00:00]} Ke7 {[%emt 0:00:00]} 48. Rde6+ {[%emt 0:00:00]} Kd8 {[%emt 0:00:00]} 49. Rxc6 {[%emt 0:00:00]} Rg8+ {[%emt 0:00:00]} 50. Kf4 {[%emt 0:00:00]} Bb7 {[%emt 0:00:00]} 51. Rfd6+ {[%emt 0:00:00]} Ke8 {[%emt 0:00:00]} 52. Rb6 {[%emt 0:00:00]} 1-0

[Event "DVM U14 2024"]
[Site "Heidelberg"]
[Date "2024.12.29"]
[Round "5"]
[White "Meusel, Theodor"]
[Black "Mosch, Cornelius"]
[Result "1/2-1/2"]
[ECO "A25"]
[WhiteElo "1608"]
[BlackElo "1405"]
[Annotator "NA RC"]
[PlyCount "81"]
[EventDate "2024.12.23"]
[EventType "team-tourn"]
[EventRounds "7"]
[EventCountry "GER"]
[SourceTitle "playchess.com"]
[Source "ChessBase"]
[SourceQuality "1"]
[TimeControl "40/5400+30:1800+30"]

1. c4 {[%emt 0:00:10]} e5 {[%emt 0:00:08]} 2. g3 {[%emt 0:00:08]} Nf6 {[%emt 0:00:14]} 3. Bg2 {[%emt 0:00:23]} Nc6 {[%emt 0:00:19]} 4. Nc3 {[%emt 0:00:19]} Bc5 {[%emt 0:03:14]} 5. e4 {[%emt 0:00:45]} O-O {[%emt 0:00:39]} 6. Nge2 {[%emt 0:00:08]} Nd4 {[%emt 0:02:16]} 7. O-O {[%emt 0:00:18]} d6 {[%emt 0:04:16]} 8. h3 {[%emt 0:00:21]} Be6 {[%emt 0:00:16]} 9. d3 {[%emt 0:00:09]} c6 {[%emt 0:06:12]} 10. Kh2 {[%emt 0:03:01]} Nd7 {[%emt 0:06:20]} 11. f4 {[%emt 0:05:15]} f5 {[%emt 0:00:37]} 12. Nxd4 {[%emt 0:06:13]} Bxd4 {[%emt 0:00:23]} 13. exf5 {[%emt 0:01:50]} Bxf5 {[%emt 0:00:44]} 14. g4 {[%emt 0:08:02]} Be6 {[%emt 0:01:34]} 15. f5 {[%emt 0:00:28]} Bf7 {[%emt 0:01:52]} 16. Qf3 {[%emt 0:06:55]} Qc7 {[%emt 0:20:04]} 17. Qg3 {[%emt 0:07:19]} Kh8 {[%emt 0:17:08]} 18. g5 {[%emt 0:05:16]} g6 {[%emt 0:02:30]} 19. f6 {[%emt 0:03:36]} Nc5 {[%emt 0:00:39]} 20. Ne2 {[%emt 0:05:02]} Ne6 {[%emt 0:01:13]} 21. Nxd4 {[%emt 0:04:59]} Nxd4 {[%emt 0:02:40]} 22. Be3 {[%emt 0:02:38]} Nf5 {[%emt 0:00:59]} 23. Qf2 {[%emt 0:01:21]} Nxe3 {[%emt 0:00:21]} 24. Qxe3 {[%emt 0:00:01]} Rad8 {[%emt 0:00:37]} 25. Qxa7 {[%emt 0:04:09]} d5 {[%emt 0:00:43]} 26. cxd5 {[%emt 0:03:56]} Bxd5 {[%emt 0:00:39]} 27. Bxd5 {[%emt 0:00:57]} Rxd5 {[%emt 0:00:21]} 28. Qe3 {[%emt 0:02:52]} e4+ {[%emt 0:00:21]} 29. Kh1 {[%emt 0:01:12]} Rxd3 {[%emt 0:00:27]} 30. Qf4 {[%emt 0:05:09]} Qxf4 {[%emt 0:06:00]} 31. Rxf4 {[%emt 0:00:09]} Rxh3+ {[%emt 0:00:24]} 32. Kg2 {[%emt 0:00:05]} Rd3 {[%emt 0:00:48]} 33. Rxe4 {[%emt 0:03:16]} Rd5 {[%emt 0:02:51]} 34. Rg4 {[%emt 0:05:31]} Rd2+ {[%emt 0:00:22]} 35. Kg3 {[%emt 0:00:20]} Rxb2 {[%emt 0:00:25]} 36. Re4 {[%emt 0:04:17]} Kg8 {[%emt 0:02:35]} 37. Re7 {[%emt 0:00:52]} Rb5 {[%emt 0:00:25]} 38. Kg4 {[%emt 0:00:43]} Rd8 {[%emt 0:05:28]} 39. Rae1 {[%emt 0:03:03]} Rd4+ {[%emt 0:01:18]} 40. R1e4 {[%emt 0:00:02]} Rbb4 {[%emt 0:10:22]} 41. Re8+ {[%emt 0:00:05]} 1/2-1/2

[Event "DVM U14 2024"]
[Site "Heidelberg"]
[Date "2024.12.29"]
[Round "5"]
[White "Spielvogel, Oliver"]
[Black "Laube, Karl"]
[Result "0-1"]
[ECO "A43"]
[WhiteElo "1543"]
[BlackElo "1635"]
[Annotator "NA"]
[PlyCount "80"]
[EventDate "2024.12.23"]
[EventType "team-tourn"]
[EventRounds "7"]
[EventCountry "GER"]
[SourceTitle "playchess.com"]
[Source "ChessBase"]
[SourceQuality "1"]
[TimeControl "40/5400+30:1800+30"]

1. d4 {[%emt 0:00:01]} e6 {[%emt 0:00:00]} 2. Nf3 {[%emt 0:00:37]} c5 {[%emt 0:00:35]} 3. Bf4 {[%emt 0:00:16]} cxd4 {[%emt 0:00:07]} 4. Nxd4 {[%emt 0:00:00]} e5 {[%emt 0:00:00]} 5. Bxe5 {[%emt 0:00:49]} Qa5+ {[%emt 0:00:00]} 6. Nc3 {[%emt 0:00:35]} Qxe5 {[%emt 0:00:00]} 7. e3 {[%emt 0:00:13]} Nc6 {[%emt 0:00:02]} 8. Ndb5 {[%emt 0:00:22]} Nf6 {[%emt 0:01:46]} 9. Qd2 {[%emt 0:00:17]} a6 {[%emt 0:00:15]} 10. f4 {[%emt 0:00:08]} Qb8 {[%emt 0:00:13]} 11. Na3 {[%emt 0:00:22]} Bb4 {[%emt 0:02:21]} 12. Nc4 {[%emt 0:00:28]} Qc7 {[%emt 0:00:38]} 13. a3 {[%emt 0:00:13]} Bxc3 {[%emt 0:00:15]} 14. Qxc3 {[%emt 0:00:13]} O-O {[%emt 0:01:42]} 15. Bd3 {[%emt 0:00:21]} Re8 {[%emt 0:00:37]} 16. O-O {[%emt 0:00:11]} d6 {[%emt 0:00:55]} 17. Rad1 {[%emt 0:00:17]} Be6 {[%emt 0:00:47]} 18. Nxd6 {[%emt 0:00:09]} Red8 {[%emt 0:01:18]} 19. Nc4 {[%emt 0:01:53]} Bxc4 {[%emt 0:00:55]} 20. Qxc4 {[%emt 0:00:11]} Rac8 {[%emt 0:01:08]} 21. Qb3 {[%emt 0:00:24]} Qe7 {[%emt 0:05:02]} 22. Rde1 {[%emt 0:05:35]} Rc7 {[%emt 0:04:13]} 23. Qa2 {[%emt 0:02:14]} Ne4 {[%emt 0:02:34]} 24. Qb1 {[%emt 0:00:01]} Nd2 {[%emt 0:00:17]} 25. Qd1 {[%emt 0:00:26]} Nxf1 {[%emt 0:00:21]} 26. Kxf1 {[%emt 0:00:08]} Rcd7 {[%emt 0:00:48]} 27. Qh5 {[%emt 0:00:23]} h6 {[%emt 0:00:55]} 28. Qf5 {[%emt 0:00:38]} g6 {[%emt 0:01:04]} 29. Qh3 {[%emt 0:00:27]} Kg7 {[%emt 0:01:27]} 30. f5 {[%emt 0:00:20]} Qf6 {[%emt 0:01:44]} 31. e4 {[%emt 0:00:24]} Ne5 {[%emt 0:00:26]} 32. Kg1 {[%emt 0:00:24]} Nxd3 {[%emt 0:01:11]} 33. cxd3 {[%emt 0:00:14]} Rxd3 {[%emt 0:00:33]} 34. Qg4 {[%emt 0:00:19]} h5 {[%emt 0:01:47]} 35. Qe2 {[%emt 0:00:31]} Qd4+ {[%emt 0:00:46]} 36. Kf1 {[%emt 0:00:22]} Rd1 {[%emt 0:01:01]} 37. f6+ {[%emt 0:00:22]} Qxf6+ {[%emt 0:00:46]} 38. Kg1 {[%emt 0:00:11]} Rxe1+ {[%emt 0:00:33]} 39. Qxe1 {[%emt 0:00:24]} Qd4+ {[%emt 0:00:17]} 40. Kf1 {[%emt 0:00:00]} Qd1 {[%emt 0:00:08]} 0-1

[Event "DVM U14 2024"]
[Site "Heidelberg"]
[Date "2024.12.29"]
[Round "5"]
[White "Zielke, Constantin"]
[Black "Retzlaff, Kian"]
[Result "0-1"]
[ECO "B90"]
[WhiteElo "1543"]
[BlackElo "1826"]
[Annotator "NA"]
[PlyCount "58"]
[EventDate "2024.12.23"]
[EventType "team-tourn"]
[EventRounds "7"]
[EventCountry "GER"]
[SourceTitle "playchess.com"]
[Source "ChessBase"]
[SourceQuality "1"]
[TimeControl "40/5400+30:1800+30"]

1. e4 {[%emt 0:00:04]} c5 {[%emt 0:00:06]} 2. Nf3 {[%emt 0:00:04]} d6 {[%emt 0:00:07]} 3. d4 {[%emt 0:00:03]} cxd4 {[%emt 0:00:04]} 4. Nxd4 {[%emt 0:00:05]} Nf6 {[%emt 0:00:04]} 5. Nc3 {[%emt 0:00:07]} a6 {[%emt 0:00:04]} 6. Bd3 {[%emt 0:03:04]} e5 {[%emt 0:00:23]} 7. Nf3 {[%emt 0:00:06]} Be7 {[%emt 0:00:59]} 8. Be3 {[%emt 0:00:28]} O-O {[%emt 0:04:07]} 9. Nd5 {[%emt 0:02:02]} Nxd5 {[%emt 0:01:45]} 10. exd5 {[%emt 0:00:07]} f5 {[%emt 0:02:10]} 11. Bc4 {[%emt 0:00:28]} Nd7 {[%emt 0:09:50]} 12. h4 {[%emt 0:04:36]} b5 {[%emt 0:02:10]} 13. Bb3 {[%emt 0:00:20]} f4 {[%emt 0:04:01]} 14. Bd2 {[%emt 0:02:27]} Nc5 {[%emt 0:07:47]} 15. Qe2 {[%emt 0:12:13]} Bg4 {[%emt 0:01:24]} 16. Qf1 {[%emt 0:03:09]} e4 {[%emt 0:05:16]} 17. Nd4 {[%emt 0:03:25]} e3 {[%emt 0:00:30]} 18. f3 {[%emt 0:00:55]} exd2+ {[%emt 0:00:32]} 19. Kxd2 {[%emt 0:00:43]} Bd7 {[%emt 0:00:42]} 20. Ne6 {[%emt 0:01:58]} Bxe6 {[%emt 0:00:17]} 21. dxe6 {[%emt 0:00:05]} d5 {[%emt 0:00:35]} 22. Re1 {[%emt 0:00:35]} Rc8 {[%emt 0:00:27]} 23. Kc1 {[%emt 0:00:36]} Rc6 {[%emt 0:01:01]} 24. Re5 {[%emt 0:01:30]} Nxb3+ {[%emt 0:00:26]} 25. axb3 {[%emt 0:00:08]} Qc7 {[%emt 0:00:29]} 26. Qe2 {[%emt 0:00:22]} Rc8 {[%emt 0:00:38]} 27. c3 {[%emt 0:00:41]} d4 {[%emt 0:00:50]} 28. Qe4 {[%emt 0:01:01]} dxc3 {[%emt 0:00:26]} 29. Rh5 {[%emt 0:00:10]} cxb2+ {[%emt 0:00:15]} 0-1

[Event "DVM U14 2024"]
[Site "Heidelberg"]
[Date "2024.12.29"]
[Round "5"]
[White "Draxler, Henning"]
[Black "Yang, Sophie"]
[Result "0-1"]
[ECO "C05"]
[WhiteElo "1480"]
[BlackElo "1547"]
[Annotator "NA"]
[PlyCount "88"]
[EventDate "2024.12.23"]
[EventType "team-tourn"]
[EventRounds "7"]
[EventCountry "GER"]
[SourceTitle "playchess.com"]
[Source "ChessBase"]
[SourceQuality "1"]
[TimeControl "40/5400+30:1800+30"]

1. e4 {[%emt 0:00:05]} e6 {[%emt 0:00:04]} 2. d4 {[%emt 0:00:10]} d5 {[%emt 0:00:05]} 3. Nd2 {[%emt 0:00:14]} Nf6 {[%emt 0:00:08]} 4. e5 {[%emt 0:00:12]} Nfd7 {[%emt 0:00:04]} 5. f4 {[%emt 0:00:57]} c5 {[%emt 0:00:07]} 6. c3 {[%emt 0:01:27]} Nc6 {[%emt 0:00:14]} 7. Ndf3 {[%emt 0:01:55]} Qb6 {[%emt 0:03:39]} 8. b3 {[%emt 0:08:23]} f6 {[%emt 0:00:55]} 9. Ne2 {[%emt 0:05:44]} cxd4 {[%emt 0:01:03]} 10. cxd4 {[%emt 0:01:56]} Bb4+ {[%emt 0:01:33]} 11. Bd2 {[%emt 0:11:28]} O-O {[%emt 0:01:00]} 12. Bxb4 {[%emt 0:19:29]} Qxb4+ {[%emt 0:00:33]} 13. Qd2 {[%emt 0:01:49]} fxe5 {[%emt 0:01:04]} 14. fxe5 {[%emt 0:02:45]} Qxd2+ {[%emt 0:01:54]} 15. Kxd2 {[%emt 0:01:26]} a5 {[%emt 0:01:08]} 16. a4 {[%emt 0:02:50]} Nb4 {[%emt 0:00:37]} 17. Nc3 {[%emt 0:01:29]} Nb8 {[%emt 0:01:33]} 18. Na2 {[%emt 0:01:11]} N8c6 {[%emt 0:00:18]} 19. Nc3 {[%emt 0:02:22]} Na7 {[%emt 0:01:34]} 20. Be2 {[%emt 0:01:44]} b6 {[%emt 0:00:17]} 21. g4 {[%emt 0:03:50]} Ba6 {[%emt 0:00:34]} 22. Bxa6 {[%emt 0:04:49]} Rxf3 {[%emt 0:01:52]} 23. Be2 {[%emt 0:01:11]} Rf4 {[%emt 0:03:42]} 24. Ke3 {[%emt 0:05:38]} Raf8 {[%emt 0:01:47]} 25. Raf1 {[%emt 0:01:06]} Nc2+ {[%emt 0:01:17]} 26. Kd3 {[%emt 0:08:43]} Nxd4 {[%emt 0:02:09]} 27. Rxf4 {[%emt 0:07:19]} Rxf4 {[%emt 0:00:35]} 28. Bd1 {[%emt 0:00:58]} Ndc6 {[%emt 0:01:50]} 29. Ke3 {[%emt 0:00:23]} Rb4 {[%emt 0:00:39]} 30. Kf3 {[%emt 0:01:05]} Nxe5+ {[%emt 0:00:15]} 31. Kg3 {[%emt 0:00:26]} Rd4 {[%emt 0:02:49]} 32. Be2 {[%emt 0:00:54]} Rd2 {[%emt 0:01:18]} 33. Kf4 {[%emt 0:00:34]} Nac6 {[%emt 0:00:29]} 34. Ke3 {[%emt 0:00:48]} Rc2 {[%emt 0:00:33]} 35. Nb1 {[%emt 0:00:23]} d4+ {[%emt 0:00:22]} 36. Kf2 {[%emt 0:00:38]} d3 {[%emt 0:00:12]} 37. Ke3 {[%emt 0:00:32]} Rxe2+ {[%emt 0:00:08]} 38. Kf4 {[%emt 0:00:16]} Ng6+ {[%emt 0:00:14]} 39. Kf3 {[%emt 0:00:14]} Nd4+ {[%emt 0:00:08]} 40. Kg3 {[%emt 0:00:12]} d2 {[%emt 0:02:08]} 41. Rd1 {[%emt 0:30:29]} Nxb3 {[%emt 0:30:32]} 42. Kf3 {[%emt 0:00:36]} Re1 {[%emt 0:00:15]} 43. Rxd2 {[%emt 0:00:24]} Nxd2+ {[%emt 0:00:15]} 44. Nxd2 {[%emt 0:00:06]} Ra1 {[%emt 0:00:18]} 0-1